bitfinex/quotes_SOLUSD_20250410
["timestamp","ask_amount","ask_price","bid_price","bid_amount"]
[1744279641466,81.5,114.54,114.53,8.7313]
[1744279643972,81.5,114.54,114.51,8.7328]
[1744279644275,81.5,114.54,114.52,16.64924438]
[1744279644578,81.5,114.54,114.51,25.38204438]
[1744279644765,81.5,114.54,114.51,8.7328]
[1744279645178,98.14924438,114.54,114.51,8.7328]
[1744279646781,106.87984438,114.54,114.5,8.7333]
[1744279647376,106.87984438,114.54,114.49,8.7339]
[1744279647377,98.14924438,114.53,114.49,8.7339]
[1744279647576,98.14924438,114.53,114.48,8.7347]
[1744279647577,16.64924438,114.52,114.48,8.7347]
[1744279648160,16.64924438,114.52,114.48,25.38394438]
[1744279648601,90.2316,114.53,114.48,25.38394438]
[1744279648762,106.88084438,114.53,114.48,25.38394438]
[1744279649163,16.64924438,114.52,114.48,25.38394438]
[1744279649363,106.88084438,114.53,114.48,25.38394438]
[1744279649682,16.64924438,114.52,114.48,8.7347]
[1744279649868,106.88084438,114.53,114.48,25.38394438]
[1744279650579,81.5,114.52,114.48,25.38394438]
[1744279651788,106.88134438,114.52,114.48,8.7347]
[1744279652284,106.88134438,114.52,114.47,33.42464438]
[1744279652504,114.64524438,114.52,114.47,33.42464438]
[1744279653173,114.64524438,114.52,114.47,25.38464438]
[1744279655701,105.91314438,114.52,114.47,25.38464438]
[1744279655905,89.2639,114.52,114.48,16.64924438]
[1744279656074,87.7549,114.52,114.49,16.64924438]
[1744279656477,87.7549,114.52,114.49,25.38314438]
[1744279656894,87.7549,114.52,114.48,25.38414438]
[1744279657275,87.7549,114.52,114.48,19.39239871]
[1744279658675,96.487,114.52,114.45,8.7674]
[1744279658885,98.41239871,114.52,114.47,10.65749871]
[1744279659091,87.7549,114.52,114.48,10.65749871]
[1744279659581,81.5,114.52,114.49,10.65749871]
[1744279659782,81.5,114.52,114.5,10.65749871]
[1744279660803,81.5,114.52,114.51,8.7328]
[1744279665288,108.61849871,114.55,114.51,8.7328]
[1744279665900,108.61819871,114.55,114.51,8.7328]
[1744279666294,108.61819871,114.55,114.5,19.39069871]
[1744279666809,10.65749871,114.54,114.49,8.7341]
[1744279667002,10.65749871,114.53,114.49,8.7341]
[1744279667698,19.38929871,114.53,114.49,8.7341]
[1744279667907,19.38929871,114.53,114.48,27.43229871]
[1744279668105,92.15749871,114.52,114.48,8.04]
[1744279668307,92.15749871,114.52,114.47,8.7355]
[1744279668508,10.65749871,114.51,114.47,8.7355]
[1744279668712,92.15749871,114.51,114.47,8.7355]
[1744279668919,81.5,114.51,114.47,19.39299871]
[1744279669102,92.15749871,114.51,114.47,8.7355]
[1744279669417,100.89069871,114.51,114.47,8.7355]
[1744279669919,100.89069871,114.51,114.47,19.39299871]
[1744279669920,81.5,114.51,114.47,19.39299871]
[1744279671032,81.5,114.51,114.48,10.65749871]
[1744279671421,81.5,114.51,114.47,8.7355]
[1744279671620,81.5,114.51,114.47,19.39299871]
[1744279672327,81.5,114.51,114.48,10.65749871]
[1744279672705,81.5,114.51,114.47,19.39299871]
[1744279673340,81.5,114.51,114.48,10.65749871]
[1744279674012,81.5,114.51,114.5,10.65749871]
[1744279674599,81.5,114.51,114.47,8.7355]
[1744279674904,81.5,114.51,114.49,10.65749871]
[1744279675123,81.5,114.51,114.5,10.65749871]
[1744279675427,81.5,114.51,114.5,19.39109871]
[1744279675727,89.2309,114.55,114.5,19.39109871]
[1744279675933,87.5933,114.55,114.52,10.65749871]
[1744279676631,87.5933,114.55,114.51,10.65749871]
[1744279676927,81.5,114.55,114.52,10.65749871]
[1744279677837,81.5,114.55,114.52,19.38929871]
[1744279680337,81.5,114.55,114.52,10.65749871]
[1744279680538,100.88729871,114.55,114.51,19.38999871]
[1744279680704,90.2298,114.55,114.51,19.38999871]
[1744279680908,81.5,114.55,114.51,19.38999871]
[1744279681420,81.5,114.55,114.51,8.7325]
[1744279681622,90.2299,114.55,114.51,19.38999871]
[1744279681810,100.88739871,114.55,114.51,19.38999871]
[1744279682434,100.88739871,114.55,114.51,8.7325]
[1744279682633,100.88739871,114.55,114.51,10.65749871]
[1744279682826,10.65749871,114.54,114.5,19.39109871]
[1744279683207,10.65749871,114.54,114.5,8.7336]
[1744279683539,10.65749871,114.54,114.5,19.39109871]
[1744279684228,90.2299,114.55,114.5,19.39109871]
[1744279684229,100.88739871,114.55,114.5,19.39109871]
[1744279684933,10.65749871,114.54,114.5,19.39109871]
[1744279685532,100.88739871,114.55,114.5,19.39109871]
[1744279685834,81.5,114.55,114.51,10.65749871]
[1744279686431,90.2299,114.55,114.5,8.7336]
[1744279686625,100.88739871,114.55,114.5,19.39109871]
[1744279686830,10.65749871,114.54,114.5,19.39109871]
[1744279687132,100.88739871,114.55,114.5,19.39109871]
[1744279687719,81.5,114.55,114.51,10.65749871]
[1744279688518,81.5,114.55,114.52,10.65749871]
[1744279689138,81.5,114.55,114.53,10.65749871]
[1744279689438,81.5,114.55,114.5,8.7336]
[1744279689743,81.5,114.55,114.51,19.38969871]
[1744279690538,81.5,114.55,114.51,8.7322]
[1744279690719,81.5,114.55,114.51,19.38969871]
[1744279691229,100.88739871,114.55,114.51,19.38969871]
[1744279692060,10.65749871,114.54,114.49,18.3732]
[1744279692344,100.88739871,114.55,114.5,10.65749871]
[1744279693743,100.88739871,114.55,114.51,8.7328]
[1744279694741,10.65749871,114.54,114.5,19.39069871]
[1744279695142,100.88739871,114.55,114.5,19.39069871]
[1744279695837,81.5,114.55,114.51,10.65749871]
[1744279697723,81.5,114.55,114.51,19.38959871]
[1744279698436,92.15749871,114.55,114.51,8.7321]
[1744279698954,100.88729871,114.55,114.5,8.7332]
[1744279699158,100.88729871,114.55,114.5,19.39069871]
[1744279699538,90.2298,114.55,114.5,19.39069871]
[1744279699749,100.88729871,114.55,114.5,19.39069871]
[1744279701659,100.88729871,114.55,114.5,8.7332]
[1744279701828,10.65749871,114.54,114.49,27.43139871]
[1744279702029,16.89269871,114.54,114.49,27.43139871]
[1744279702951,14.966,114.54,114.49,27.43139871]
[1744279703157,25.62349871,114.54,114.49,27.43139871]
[1744279703453,8.7308,114.54,114.5,10.65749871]
[1744279703755,100.88759871,114.55,114.5,10.65749871]
[1744279704980,100.88759871,114.55,114.51,8.7328]
[1744279706047,100.88759871,114.55,114.49,8.7343]
[1744279706242,100.88759871,114.55,114.5,10.65749871]
[1744279708344,100.88759871,114.55,114.51,8.7328]
[1744279709342,81.5,114.54,114.51,8.7328]
[1744279709564,81.5,114.54,114.5,19.39069871]
[1744279709859,92.15749871,114.54,114.5,8.7332]
[1744279710057,92.15749871,114.54,114.49,8.7339]
[1744279710264,18.77139871,114.53,114.49,8.7339]
[1744279710457,27.50279871,114.53,114.48,18.67749871]
[1744279710853,8.1139,114.53,114.49,10.65749871]
[1744279711359,8.1139,114.53,114.5,10.65749871]
[1744279711559,8.1139,114.53,114.49,10.65749871]
[1744279712374,6.5083,114.53,114.5,10.65749871]
[1744279712544,6.5083,114.53,114.5,8.7331]
[1744279715157,6.5083,114.53,114.5,19.39059871]
[1744279715669,81.5,114.54,114.5,19.39059871]
[1744279719879,81.5,114.54,114.5,8.7331]
[1744279720082,81.5,114.54,114.5,19.39059871]
[1744279722562,0.063,114.57,114.53,10.65749871]
[1744279722760,0.063,114.57,114.55,10.65749871]
[1744279724161,0.063,114.57,114.56,8.729]
[1744279724676,0.063,114.57,114.55,19.38689871]
[1744279726174,0.063,114.57,114.55,10.65749871]
[1744279726478,0.063,114.57,114.54,19.38759871]
[1744279726878,0.063,114.57,114.54,8.7301]
[1744279727081,0.063,114.57,114.54,19.38759871]
[1744279729163,0.063,114.57,114.53,19.38879871]
[1744279729769,10.72049871,114.57,114.53,8.7313]
[1744279730783,92.15749871,114.56,114.52,8.7316]
[1744279731166,92.15749871,114.56,114.51,19.38989871]
[1744279731167,100.88709871,114.56,114.51,19.38989871]
[1744279731560,10.65749871,114.55,114.51,8.7324]
[1744279731768,10.65749871,114.55,114.51,10.65749871]
[1744279731973,18.86259871,114.55,114.5,19.39089871]
[1744279732281,10.65749871,114.53,114.49,27.41139871]
[1744279732478,10.65749871,114.53,114.49,16.7539]
[1744279732686,10.65749871,114.53,114.49,8.7339]
[1744279733482,10.65749871,114.53,114.49,19.39139871]
[1744279733889,19.38889871,114.53,114.49,19.39139871]
[1744279735289,19.38889871,114.53,114.49,8.7339]
[1744279735477,10.65749871,114.52,114.49,8.7339]
[1744279735882,19.38889871,114.53,114.49,19.39139871]
[1744279736784,19.38889871,114.53,114.48,10.68749871]
[1744279738098,19.38889871,114.53,114.49,8.7343]
[1744279739894,10.65749871,114.53,114.49,8.7343]
[1744279740484,10.65749871,114.53,114.49,19.39179871]
[1744279740881,19.38889871,114.53,114.48,8.7649]
[1744279741077,10.65749871,114.52,114.48,8.7649]
[1744279741278,10.65749871,114.49,114.48,0.03]
[1744279742373,19.39179871,114.49,114.48,0.03]
[1744279742806,10.65749871,114.49,114.48,0.03]
[1744279744387,19.39179871,114.49,114.48,0.03]
[1744279744591,46.25247071,114.49,114.48,0.03]
[1744279746602,53.2089253,114.49,114.48,0.03]
[1744279747403,75.0448253,114.49,114.45,0.03]
[1744279747587,10.65749871,114.46,114.45,0.03]
[1744279748203,100.433972,114.48,114.45,0.03]
[1744279748408,10.65749871,114.47,114.45,0.03]
[1744279749909,19.39349871,114.47,114.45,0.03]
[1744279751304,8.736,114.47,114.45,0.03]
[1744279751608,19.39349871,114.47,114.45,0.03]
[1744279752208,109.169472,114.48,114.45,0.03]
[1744279752413,10.65749871,114.47,114.45,0.03]
[1744279753201,19.39379871,114.47,114.45,0.03]
[1744279753607,10.65749871,114.47,114.45,0.03]
[1744279753989,109.169472,114.48,114.45,0.03]
[1744279754298,119.82697071,114.48,114.45,0.03]
[1744279754910,10.65749871,114.47,114.45,0.03]
[1744279759216,81.5,114.48,114.45,0.03]
[1744279759401,81.5,114.48,114.45,10.68749871]
[1744279759593,81.5,114.51,114.46,10.65749871]
[1744279759793,10.65749871,114.5,114.45,10.68749871]
[1744279760003,10.65749871,114.49,114.45,0.03]
[1744279760315,90.233,114.51,114.45,10.68749871]
[1744279760509,19.39109871,114.5,114.46,8.7366]
[1744279761718,10.65749871,114.5,114.46,8.7366]
[1744279761917,92.15749871,114.51,114.46,19.39409871]
[1744279762101,81.5,114.51,114.48,10.65749871]
[1744279762494,81.5,114.51,114.49,8.7343]
[1744279764003,81.5,114.55,114.5,10.65749871]
[1744279764205,81.5,114.55,114.51,10.65749871]
[1744279764716,81.5,114.55,114.52,8.732]
[1744279765301,100.88749871,114.55,114.5,10.65749871]
[1744279765510,92.15749871,114.55,114.5,10.65749871]
[1744279765715,92.15749871,114.55,114.51,10.65749871]
[1744279766626,92.15749871,114.55,114.52,8.732]
[1744279767500,100.88749871,114.55,114.51,8.7324]
[1744279767700,100.88749871,114.55,114.5,19.39069871]
[1744279768110,10.65749871,114.53,114.49,8.7343]
[1744279768522,10.65749871,114.53,114.49,19.39179871]
[1744279768734,19.38819871,114.54,114.49,19.39179871]
[1744279769721,18.933972,114.54,114.49,19.39179871]
[1744279769923,29.59147071,114.54,114.49,19.39179871]
[1744279771216,29.59147071,114.54,114.49,8.7343]
[1744279771527,10.65749871,114.53,114.49,8.7343]
[1744279772132,38.32277071,114.54,114.49,19.39179871]
[1744279773618,29.59147071,114.54,114.49,19.39179871]
[1744279773826,81.5,114.53,114.5,10.65749871]
[1744279776147,81.5,114.53,114.51,8.7328]
[1744279777641,81.5,114.53,114.51,19.39029871]
[1744279778139,81.5,114.53,114.52,10.65749871]
[1744279778524,81.5,114.53,114.51,19.39029871]
[1744279779637,92.15749871,114.56,114.51,19.39029871]
[1744279780242,100.88659871,114.56,114.51,19.39029871]
[1744279781038,92.15749871,114.56,114.51,19.39029871]
[1744279781349,81.5,114.56,114.52,10.65749871]
[1744279782642,81.5,114.56,114.53,8.7313]
[1744279783139,81.5,114.56,114.53,19.38879871]
[1744279786840,81.5,114.56,114.54,10.65749871]
[1744279787435,81.5,114.56,114.53,10.65749871]
[1744279788727,81.5,114.56,114.54,19.38799871]
[1744279789444,81.5,114.56,114.54,8.7305]
[1744279790329,81.5,114.56,114.52,10.65749871]
[1744279790648,10.65749871,114.54,114.49,8.7343]
[1744279790941,100.88889871,114.53,114.48,17.34453125]
[1744279791132,81.5,114.52,114.48,20.94719871]
[1744279791447,92.15749871,114.51,114.47,10.65749871]
[1744279791747,81.5,114.51,114.47,19.39329871]
[1744279792547,81.5,114.51,114.49,10.65749871]
[1744279792845,81.5,114.51,114.49,19.39159871]
[1744279793029,81.5,114.51,114.48,10.65749871]
[1744279793225,81.5,114.51,114.46,8.7366]
[1744279793431,90.2329,114.51,114.46,8.7366]
[1744279793649,90.2329,114.51,114.47,10.65749871]
[1744279795252,107.05459871,114.51,114.47,10.65749871]
[1744279795548,29.59147071,114.5,114.45,8.767]
[1744279795732,92.15749871,114.49,114.45,0.03]
[1744279795926,10.65749871,114.48,114.45,0.03]
[1744279796353,92.15749871,114.47,114.45,0.03]
[1744279797436,81.5,114.47,114.45,0.03]
[1744279801257,81.5,114.47,114.45,10.68749871]
[1744279801754,81.5,114.47,114.45,0.03]
[1744279804642,90.236,114.47,114.45,0.03]
[1744279805456,81.5,114.47,114.45,0.03]
[1744279805846,81.5,114.47,114.45,10.68749871]
[1744279806157,81.5,114.47,114.45,0.03]
[1744279807274,81.5,114.47,114.45,10.68749871]
[1744279807559,81.5,114.47,114.45,0.03]
[1744279808861,90.2359,114.47,114.45,0.03]
[1744279809057,81.5,114.47,114.45,0.03]
[1744279809839,81.5,114.47,114.45,10.68749871]
[1744279810042,81.5,114.47,114.45,0.03]
[1744279811650,81.5,114.47,114.46,10.65749871]
[1744279812243,81.5,114.5,114.46,10.65749871]
[1744279812441,81.5,114.5,114.48,10.65749871]
[1744279812649,81.5,114.53,114.49,10.65749871]
[1744279813239,29.30714757,114.52,114.47,10.65749871]
[1744279813444,10.65749871,114.51,114.47,10.65749871]
[1744279813747,10.65749871,114.51,114.47,19.39309871]
[1744279813955,19.39049871,114.51,114.47,19.39309871]
[1744279815168,10.65749871,114.51,114.47,19.39309871]
[1744279815369,81.78432314,114.53,114.48,10.65749871]
[1744279815580,92.44182185,114.53,114.48,10.65749871]
[1744279816269,101.17352185,114.53,114.48,10.65749871]
[1744279816453,101.17352185,114.53,114.49,8.7343]
[1744279817776,81.5,114.52,114.49,8.7343]
[1744279819378,81.5,114.52,114.48,19.39229871]
[1744279819781,92.15749871,114.52,114.48,19.39229871]
[1744279820476,81.5,114.52,114.48,19.39229871]
[1744279821564,92.15749871,114.52,114.48,19.39229871]
[1744279823285,81.5,114.52,114.49,10.65749871]
[1744279823469,81.5,114.52,114.5,10.65749871]
[1744279824173,81.5,114.52,114.49,10.65749871]
[1744279824578,81.5,114.52,114.5,8.7336]
[1744279824764,81.5,114.52,114.5,19.39109871]
[1744279826378,81.5,114.52,114.51,10.65749871]
[1744279826791,81.5,114.52,114.51,19.39029871]
[1744279828285,81.5,114.52,114.51,8.7328]
[1744279830166,81.5,114.52,114.51,19.39029871]
[1744279832268,81.5,114.52,114.51,21.03579871]
[1744279833181,0.063,114.57,114.51,21.03579871]
[1744279833386,0.063,114.57,114.53,10.65749871]
[1744279833587,0.063,114.57,114.54,8.7305]
[1744279835190,29.65447071,114.57,114.52,19.38899871]
[1744279835378,10.65749871,114.56,114.52,19.38899871]
[1744279836468,29.65447071,114.57,114.52,19.38899871]
[1744279838292,81.5,114.56,114.52,19.38899871]
[1744279838592,29.59147071,114.55,114.51,8.7325]
[1744279838786,81.5,114.54,114.51,8.7325]
[1744279838987,10.65749871,114.53,114.5,8.7332]
[1744279839287,111.09147071,114.52,114.47,10.65749871]
[1744279839591,81.5,114.51,114.48,10.65749871]
[1744279839791,81.5,114.51,114.49,10.65749871]
[1744279840089,81.5,114.51,114.48,10.65749871]
[1744279840988,81.5,114.51,114.48,19.39209871]
[1744279843691,81.5,114.51,114.49,10.65749871]
[1744279844191,1.5655,114.54,114.5,10.65749871]
[1744279844396,81.5,114.55,114.52,10.65749871]
[1744279845394,81.5,114.55,114.53,8.7313]
[1744279849899,81.5,114.55,114.49,1.5595]
[1744279850081,92.15749871,114.55,114.5,10.65749871]
[1744279850396,81.5,114.55,114.49,1.5595]
[1744279850696,81.5,114.55,114.51,10.65749871]
[1744279851083,81.5,114.55,114.51,19.38959871]
[1744279851599,81.5,114.55,114.52,10.65749871]
[1744279851772,81.5,114.55,114.51,8.7321]
[1744279851773,81.5,114.55,114.53,10.65749871]
[1744279852576,81.5,114.55,114.54,10.65749871]
[1744279852979,81.5,114.55,114.54,19.38799871]
[1744279854988,0.063,114.57,114.54,19.38799871]
[1744279855193,0.063,114.57,114.55,10.65749871]
[1744279856605,0.063,114.57,114.56,8.729]
[1744279857194,0.063,114.57,114.56,19.38649871]
[1744279859200,0.063,114.57,114.54,42.62999484]
[1744279859201,0.063,114.57,114.54,8.7305]
[1744279859406,0.063,114.57,114.54,19.38799871]
[1744279860109,0.063,114.57,114.55,10.65749871]
[1744279860300,0.063,114.57,114.55,19.38709871]
[1744279862316,0.063,114.57,114.54,19.38779871]
[1744279864598,0.063,114.57,114.55,19.38689871]
[1744279866501,0.063,114.57,114.56,19.38649871]
[1744279867215,0.063,114.58,114.56,27.38649871]
[1744279867512,0.063,114.58,114.57,10.65749871]
[1744279867808,0.063,114.59,114.57,12.17919871]
[1744279868015,0.063,114.59,114.58,10.65749871]
[1744279868802,0.063,114.59,114.58,19.38499871]
[1744279869312,0.063,114.6,114.58,19.38499871]
[1744279869524,0.063,114.6,114.59,10.65749871]
[1744279872098,0.063,114.6,114.57,1.5217]
[1744279872303,0.063,114.6,114.56,8.0]
[1744279872516,0.063,114.6,114.58,10.65749871]
[1744279872713,0.063,114.6,114.57,10.65749871]
[1744279872913,92.22049871,114.6,114.55,10.65749871]
[1744279873604,92.22049871,114.6,114.55,19.38729871]
[1744279873820,10.65749871,114.59,114.54,8.7301]
[1744279873998,10.65749871,114.59,114.54,19.38759871]
[1744279874918,92.22049871,114.6,114.55,10.65749871]
[1744279875090,92.22049871,114.6,114.56,10.65749871]
[1744279875295,98.19239162,114.6,114.56,16.62939162]
[1744279875703,81.563,114.6,114.56,16.62939162]
[1744279876109,81.563,114.6,114.58,16.62939162]
[1744279876810,81.563,114.6,114.59,16.62939162]
[1744279878137,0.063,114.6,114.59,25.35609162]
[1744279882124,0.0001,114.6,114.59,41.98548324]
[1744279882325,0.0001,114.6,114.59,25.35609162]
[1744279884221,0.0001,114.6,114.59,44.29006362]
[1744279884520,0.0001,114.6,114.59,60.91945524]
[1744279886027,0.0001,114.6,114.59,44.29006362]
[1744279886718,0.0001,114.6,114.59,25.35609162]
[1744279888432,0.0001,114.6,114.59,44.29006362]
[1744279893227,0.0001,114.6,114.59,60.91945524]
[1744279893743,0.0001,114.6,114.59,44.29006362]
[1744279894143,0.0001,114.61,114.6,52.19275524]
[1744279897024,0.0001,114.61,114.6,33.25878324]
[1744279897335,0.0001,114.61,114.6,79.14652985]
[1744279897747,0.0001,114.61,114.57,89.2]
[1744279897937,0.0001,114.61,114.58,10.62930597]
[1744279898148,0.0001,114.61,114.57,18.62930597]
[1744279898856,0.0001,114.61,114.57,8.0]
[1744279899148,0.0001,114.61,114.57,18.62930597]
[1744279899322,0.0001,114.61,114.58,8.7275]
[1744279899842,0.0001,114.61,114.59,10.62930597]
[1744279900425,0.0001,114.61,114.6,8.726]
[1744279900629,0.0001,114.61,114.6,19.35530597]
[1744279901337,0.0001,114.61,114.6,25.33726892]
[1744279901531,0.0001,114.61,114.6,51.33726892]
[1744279901741,0.0001,114.61,114.6,8.726]
[1744279901942,0.0001,114.61,114.6,25.33726892]
[1744279904142,0.0001,114.61,114.6,33.33726892]
[1744279908958,0.0001,114.61,114.6,16.726]
[1744279909248,0.0001,114.61,114.6,33.33726892]
[1744279912533,0.0001,114.61,114.58,16.61126892]
[1744279912730,0.0001,114.61,114.59,16.61126892]
[1744279912928,0.0001,114.61,114.57,8.0]
[1744279913153,0.0001,114.61,114.59,16.61126892]
[1744279913531,0.0001,114.61,114.6,16.61126892]
[1744279915432,0.0001,114.61,114.59,16.61126892]
[1744279915941,0.0001,114.61,114.58,16.61126892]
[1744279916336,0.0001,114.61,114.59,16.61126892]
[1744279920258,0.0001,114.61,114.6,16.61126892]
[1744279921061,0.0001,114.61,114.55,1.6569]
[1744279921370,98.11126892,114.6,114.55,0.03]
[1744279921549,16.61126892,114.59,114.55,0.03]
[1744279922249,25.33806892,114.59,114.55,0.03]
[1744279922456,16.61126892,114.58,114.55,0.03]
[1744279923298,109.160272,114.6,114.55,10.67489548]
[1744279923457,111.07886748,114.6,114.55,10.67489548]
[1744279923858,92.14489548,114.6,114.56,10.64489548]
[1744279924282,92.14489548,114.6,114.57,8.7282]
[1744279925887,81.5,114.6,114.57,8.7282]
[1744279926189,81.5,114.6,114.57,19.37309548]
[1744279928159,81.5,114.6,114.58,10.64489548]
[1744279930086,8.231,114.61,114.58,10.64489548]
[1744279930259,0.0001,114.61,114.6,10.64489548]
[1744279930872,0.0001,114.61,114.59,10.64489548]
[1744279931073,0.0001,114.61,114.58,8.0]
[1744279931292,0.0001,114.61,114.59,10.64489548]
[1744279931775,0.0001,114.61,114.6,10.64489548]
[1744279932079,0.0001,114.61,114.59,10.64489548]
[1744279934283,0.0001,114.61,114.58,18.64489548]
[1744279937088,0.0001,114.61,114.59,10.64489548]
[1744279937260,0.0001,114.61,114.6,10.64489548]
[1744279937682,0.0001,114.61,114.6,72.1584494]
[1744279938182,0.0001,114.61,114.6,29.57886748]
[1744279938782,0.0001,114.61,114.6,10.64489548]
[1744279940682,0.0001,114.61,114.6,36.64489548]
[1744279941184,0.0001,114.61,114.6,55.57886748]
[1744279941365,0.0001,114.61,114.6,98.1584494]
[1744279943403,0.0001,114.61,114.6,78.14341182]
[1744279944698,0.0001,114.61,114.6,42.60471991]
[1744279946786,0.0001,114.61,114.6,59.20943982]
[1744279947189,0.0001,114.62,114.61,16.60471991]
[1744279954187,0.0001,114.62,114.59,18.933972]
[1744279954382,0.0001,114.62,114.61,16.60471991]
[1744279954691,0.0001,114.62,114.61,42.60471991]
[1744279956511,0.0001,114.62,114.61,61.53869191]
[1744279957184,0.0001,114.62,114.61,42.60471991]
[1744279959216,0.0001,114.62,114.61,50.58471991]
[1744279963411,0.0001,114.62,114.61,44.60935582]
[1744279963707,0.0001,114.62,114.61,18.60935582]
[1744279965997,0.063,114.65,114.63,26.0]
[1744279966230,0.063,114.66,114.65,26.0]
[1744279966394,0.063,114.66,114.65,44.60935582]
[1744279966796,0.063,114.66,114.65,33.98]
[1744279967013,0.063,114.66,114.65,44.60935582]
[1744279970232,0.063,114.66,114.65,18.60935582]
[1744279970434,0.063,114.66,114.65,7.98]
[1744279971017,0.063,114.66,114.63,10.62935582]
[1744279976132,10.69235582,114.66,114.61,10.62935582]
[1744279977010,0.063,114.66,114.62,10.62935582]
[1744279977539,10.69235582,114.66,114.61,10.62935582]
[1744279979551,100.91385582,114.66,114.61,10.62935582]
[1744279980610,92.19235582,114.66,114.61,10.62935582]
[1744279982151,92.19235582,114.66,114.59,7.98]
[1744279982330,100.91385582,114.66,114.61,10.62935582]
[1744279982512,12.25985582,114.65,114.6,10.62935582]
[1744279982717,6.2427,114.64,114.6,10.62935582]
[1744279983951,6.2427,114.64,114.61,10.62935582]
[1744279986342,1.6305,114.65,114.61,10.62935582]
[1744279987971,81.563,114.66,114.62,10.62935582]
[1744279990459,92.19235582,114.66,114.61,7.98]
[1744279990781,92.19235582,114.66,114.61,18.60935582]
[1744279991577,92.19235582,114.66,114.61,10.62935582]
[1744279991760,10.62935582,114.63,114.58,7.98]
[1744279991965,10.62935582,114.61,114.57,10.62935582]
[1744279992152,10.62935582,114.61,114.56,10.65935582]
[1744279993675,10.62935582,114.61,114.57,10.62935582]
[1744279996171,10.62935582,114.61,114.56,10.65935582]
[1744279996490,8.1487,114.6,114.56,10.65935582]
[1744279996781,18.77805582,114.6,114.56,10.65935582]
[1744279997481,8.1487,114.6,114.56,10.65935582]
[1744280003387,8.1487,114.6,114.56,0.03]
[1744280003388,27.50415582,114.6,114.56,0.03]
[1744280003579,10.62935582,114.59,114.56,0.03]
[1744280005387,18.77805582,114.6,114.56,0.03]
[1744280006388,10.62935582,114.59,114.56,0.03]
[1744280007393,18.77805582,114.6,114.56,0.03]
[1744280011001,27.50405582,114.6,114.56,0.03]
[1744280011167,10.62935582,114.59,114.56,0.03]
[1744280019289,18.77805582,114.6,114.56,0.03]
[1744280020470,27.50415582,114.6,114.56,0.03]
[1744280021801,10.62935582,114.59,114.56,0.03]
[1744280022002,8.1487,114.6,114.56,10.65935582]
[1744280022390,81.5,114.62,114.58,10.62935582]
[1744280022717,81.5,114.62,114.56,8.01]
[1744280022718,81.5,114.62,114.59,10.62935582]
[1744280023583,81.5,114.62,114.58,10.62935582]
[1744280025111,92.12935582,114.62,114.58,10.62935582]
[1744280025610,81.5,114.62,114.58,10.62935582]
[1744280028409,81.5,114.62,114.57,10.62935582]
[1744280028607,81.5,114.62,114.56,8.01]
[1744280028789,10.62935582,114.61,114.56,18.63935582]
[1744280028988,10.62935582,114.61,114.56,8.01]
[1744280029292,10.62935582,114.6,114.56,8.01]
[1744280029493,19.35455582,114.61,114.56,18.63935582]
[1744280029804,10.62935582,114.6,114.56,8.01]
[1744280030006,18.45875582,114.58,114.56,0.03]
[1744280030588,10.62935582,114.57,114.56,0.03]
[1744280032514,18.45875582,114.58,114.56,0.03]
[1744280033928,111.06332782,114.57,114.56,0.03]
[1744280035615,29.56332782,114.57,114.55,0.03]
[1744280035804,25.78925582,114.56,114.55,0.03]
[1744280036198,27.28925582,114.56,114.55,0.03]
[1744280037010,27.57357896,114.56,114.55,0.03]
[1744280037214,46.22322782,114.56,114.55,0.03]
[1744280038187,37.49422782,114.56,114.55,0.03]
[1744280038393,7.9309,114.56,114.55,0.03]
[1744280038618,18.56025582,114.56,114.55,0.03]
[1744280040620,100.06025582,114.56,114.55,0.03]
[1744280041214,108.78925582,114.56,114.55,0.03]
[1744280043013,100.06025582,114.56,114.55,0.03]
[1744280046622,108.78925582,114.56,114.55,0.03]
[1744280046817,127.72322782,114.56,114.55,0.03]
[1744280051007,18.933972,114.55,114.51,0.063]